bitfinex/quotes_BTCUSD_20250124
["timestamp","ask_amount","ask_price","bid_price","bid_amount"]
[1737713946068,0.2616964,105180.0,105170.0,0.275342]
[1737713946518,0.32997051,105180.0,105170.0,0.275342]
[1737713946742,0.2616964,105180.0,105170.0,0.275342]
[1737713947701,0.32997051,105180.0,105170.0,0.150142]
[1737713948684,0.33026893,105180.0,105170.0,0.150142]
[1737713949337,0.32926893,105180.0,105170.0,0.150142]
[1737713949713,0.33326893,105180.0,105170.0,0.150142]
[1737713951503,0.33226893,105180.0,105170.0,0.150142]
[1737713952010,0.33426893,105180.0,105170.0,0.150142]
[1737713952397,0.26599482,105180.0,105170.0,0.150142]
[1737713952825,0.33426893,105180.0,105170.0,0.150142]
[1737713956308,0.26599482,105180.0,105170.0,0.150142]
[1737713958475,0.33426893,105180.0,105170.0,0.150142]
[1737713961675,0.41236893,105180.0,105170.0,0.150142]
[1737713976288,0.43236893,105180.0,105170.0,0.000142]
[1737713977325,0.41236893,105180.0,105170.0,0.000142]
[1737713977525,0.43236893,105180.0,105170.0,0.000142]
[1737713978333,0.41236893,105180.0,105170.0,0.000142]
[1737713978545,0.43236893,105180.0,105170.0,0.000142]
[1737713979803,0.41236893,105180.0,105170.0,0.000142]
[1737713980019,0.43236893,105180.0,105170.0,0.000142]
[1737713982518,0.50064304,105180.0,105170.0,0.000142]
[1737713982916,0.43236893,105180.0,105170.0,0.000142]
[1737713983123,1.93236893,105180.0,105170.0,0.000142]
[1737713983320,1.93036893,105180.0,105170.0,0.000142]
[1737713983646,0.43636893,105180.0,105170.0,0.001142]
[1737713983847,0.45536893,105180.0,105170.0,0.001142]
[1737713984403,0.125084,105170.0,105160.0,0.000142]
[1737713984615,0.43667951,105170.0,105160.0,0.000142]
[1737713985440,0.42667951,105170.0,105160.0,0.000142]
[1737713986732,0.42967951,105170.0,105160.0,0.000142]
[1737713986944,0.43467951,105170.0,105160.0,0.000142]
[1737713989996,0.41467951,105170.0,105160.0,0.000142]
[1737713990200,0.42398659,105170.0,105160.0,0.000142]
[1737713990609,0.44317601,105170.0,105160.0,0.000142]
[1737713990876,0.44017601,105170.0,105160.0,0.000142]
[1737713991288,0.44417601,105170.0,105160.0,0.001142]
[1737713991820,0.37547601,105170.0,105160.0,0.001142]
[1737713992021,0.37547601,105170.0,105160.0,0.076542]
[1737713992245,0.38547601,105170.0,105160.0,0.076542]
[1737713992656,0.37547601,105170.0,105160.0,0.076542]
[1737713992861,0.38547601,105170.0,105160.0,0.076542]
[1737713993082,0.40547601,105170.0,105160.0,0.076542]
[1737713994356,0.40577422,105170.0,105160.0,0.076542]
[1737713994776,1.90577422,105170.0,105160.0,0.076542]
[1737713995408,1.94382922,105170.0,105160.0,0.076542]
[1737713996214,0.44382922,105170.0,105160.0,0.076542]
[1737713996832,0.44382922,105170.0,105160.0,0.001142]
[1737714004294,0.34874522,105170.0,105150.0,0.1228419]
[1737714004506,0.32898851,105160.0,105150.0,0.2728419]
[1737714006747,0.33798851,105160.0,105150.0,0.2728419]
[1737714006976,0.34698851,105160.0,105150.0,0.2728419]
[1737714007694,0.2787144,105160.0,105150.0,0.2728419]
[1737714008116,0.34698851,105160.0,105150.0,0.2728419]
[1737714016962,0.2787144,105160.0,105150.0,0.2728419]
[1737714017374,0.34698851,105160.0,105150.0,0.2728419]
[1737714018848,0.2787144,105160.0,105150.0,0.2728419]
[1737714019449,0.34698851,105160.0,105150.0,0.2728419]
[1737714021191,0.2787144,105160.0,105150.0,0.27265526]
[1737714023667,0.34698851,105160.0,105150.0,0.27265526]
[1737714024245,0.2787144,105160.0,105150.0,0.27265526]
[1737714025653,0.34698851,105160.0,105150.0,0.27265526]
[1737714028420,0.34698851,105160.0,105150.0,0.27279736]
[1737714028597,0.34728693,105160.0,105150.0,0.27279736]
[1737714030108,0.34728693,105160.0,105150.0,0.1501421]
[1737714031745,0.34998722,105160.0,105150.0,0.1501421]
[1737714034352,0.35047372,105160.0,105150.0,0.1501421]
[1737714036379,0.35093109,105160.0,105150.0,0.1501421]
[1737714036710,0.35153993,105160.0,105150.0,0.1501421]
[1737714038585,0.41981404,105160.0,105150.0,0.0001421]
[1737714038785,0.52801404,105160.0,105150.0,0.0001421]
[1737714039009,0.45973993,105160.0,105150.0,0.0001421]
[1737714039276,0.38153993,105160.0,105150.0,0.0001421]
[1737714039476,0.38239349,105160.0,105150.0,0.0001421]
[1737714039660,0.4216676,105160.0,105150.0,0.0001421]
[1737714039861,0.42020342,105160.0,105150.0,0.0001421]
[1737714040067,0.36092931,105160.0,105150.0,0.0001421]
[1737714040271,0.41120342,105160.0,105150.0,0.0001421]
[1737714040470,0.34292931,105160.0,105150.0,0.0001421]
[1737714040678,0.36092931,105160.0,105150.0,0.0001421]
[1737714041173,0.35192931,105160.0,105150.0,0.0001421]
[1737714041385,0.36092931,105160.0,105150.0,0.0001421]
[1737714045301,0.42920342,105160.0,105150.0,0.0001421]
[1737714047052,0.36092931,105160.0,105150.0,0.0001421]
[1737714053072,0.44920342,105160.0,105150.0,0.0001421]
[1737714053536,0.02,105150.0,105140.0,0.048442]
[1737714053699,0.34899751,105150.0,105140.0,0.048442]
[1737714053903,0.34234396,105150.0,105140.0,0.150142]
[1737714054384,0.40874396,105150.0,105140.0,0.000142]
[1737714054902,0.40874396,105150.0,105140.0,0.00063451]
[1737714055103,0.41774396,105150.0,105140.0,0.00063451]
[1737714055353,0.42674396,105150.0,105140.0,0.00063451]
[1737714055940,0.41774396,105150.0,105140.0,0.00063451]
[1737714056377,0.42674396,105150.0,105140.0,0.00063451]
[1737714056797,0.41774396,105150.0,105140.0,0.00063451]
[1737714057197,0.42674396,105150.0,105140.0,0.00063451]
[1737714059564,0.51135772,105150.0,105140.0,0.00063451]
[1737714060031,0.54083007,105150.0,105140.0,0.00063451]
[1737714060409,0.54041127,105150.0,105140.0,0.00063451]
[1737714061228,0.01,105140.0,105130.0,0.050042]
[1737714061437,0.40728062,105140.0,105130.0,0.050042]
[1737714061631,0.41078107,105140.0,105130.0,0.050042]
[1737714062444,0.41978107,105140.0,105130.0,0.050042]
[1737714063054,0.42878107,105140.0,105130.0,0.050042]
[1737714063246,0.41978107,105140.0,105130.0,0.050042]
[1737714063745,0.41078107,105140.0,105130.0,0.050042]
[1737714064157,0.41978107,105140.0,105130.0,0.050042]
[1737714064578,0.42853903,105140.0,105130.0,0.050042]
[1737714068089,0.41853903,105140.0,105130.0,0.050042]
[1737714074452,0.41883745,105140.0,105130.0,0.050042]
[1737714075100,0.35056334,105140.0,105130.0,0.050042]
[1737714075313,0.35433025,105140.0,105130.0,0.050042]
[1737714079408,0.35433025,105140.0,105130.0,0.132642]
[1737714083083,0.35254389,105140.0,105130.0,0.132642]
[1737714088587,0.36254389,105140.0,105130.0,0.132642]
[1737714089078,0.335707,105140.0,105120.0,0.075442]
[1737714089285,0.335707,105140.0,105120.0,0.000142]
[1737714089286,0.36852503,105130.0,105120.0,0.000142]
[1737714089524,0.33901551,105130.0,105120.0,0.000142]
[1737714089736,1.84598054,105130.0,105120.0,0.000142]
[1737714090457,0.34598054,105130.0,105120.0,0.000142]
[1737714090656,0.35498054,105130.0,105120.0,0.000142]
[1737714091517,0.34498054,105130.0,105120.0,0.000142]
[1737714091727,0.51265465,105130.0,105120.0,1e-06]
[1737714091863,0.45338054,105130.0,105120.0,1e-06]
[1737714092270,0.095138,105110.0,105100.0,0.228042]
[1737714092518,0.32903351,105110.0,105100.0,0.228042]
[1737714092738,0.33588516,105110.0,105100.0,0.228042]
[1737714093683,0.34293426,105110.0,105100.0,0.228042]
[1737714096291,0.34293426,105110.0,105080.0,0.03]
[1737714096292,0.095156,105090.0,105080.0,0.03]
[1737714096593,0.2607774,105090.0,105080.0,0.0778]
[1737714097212,0.26394531,105090.0,105080.0,0.0778]
[1737714097737,0.26594531,105090.0,105080.0,0.0778]
[1737714098847,0.26694531,105090.0,105080.0,0.0778]
[1737714099520,0.26694531,105090.0,105080.0,0.1596]
[1737714101371,0.27648981,105090.0,105080.0,0.1596]
[1737714105239,0.2797949,105090.0,105080.0,0.1596]
[1737714108182,0.21152079,105090.0,105080.0,0.1596]
[1737714108428,0.22152079,105090.0,105080.0,0.3096]
[1737714108876,0.22152079,105090.0,105080.0,0.404765]
[1737714109452,0.12636479,105090.0,105080.0,0.404765]
[1737714109756,0.22152079,105090.0,105080.0,0.404765]
[1737714109952,0.12636479,105090.0,105080.0,0.404765]
[1737714110180,0.2897949,105090.0,105080.0,0.404765]
[1737714110466,0.2897949,105090.0,105080.0,0.3097421]
[1737714110617,0.2897949,105090.0,105080.0,0.4049071]
[1737714110820,0.29009332,105090.0,105080.0,0.3097421]
[1737714111031,0.29009332,105090.0,105080.0,0.4049071]
[1737714112293,0.28009332,105090.0,105080.0,0.3097421]
[1737714113949,0.34836743,105090.0,105080.0,0.1597421]
[1737714114497,0.34836743,105090.0,105080.0,0.0301421]
[1737714115456,0.34536743,105090.0,105080.0,0.0301421]
[1737714115607,0.35036743,105090.0,105080.0,0.0301421]
[1737714116421,0.34536743,105090.0,105080.0,0.0301421]
[1737714116869,0.35636743,105090.0,105080.0,0.0301421]
[1737714117067,0.34736743,105090.0,105080.0,0.0301421]
[1737714117267,0.27709332,105090.0,105080.0,0.0301421]
[1737714117507,0.28609332,105090.0,105080.0,0.0301421]
[1737714117634,0.29509332,105090.0,105080.0,0.0301421]
[1737714118261,0.29509332,105090.0,105080.0,0.02988923]
[1737714118461,0.29509332,105090.0,105080.0,0.17988923]
[1737714119579,0.3138027,105090.0,105080.0,0.02988923]
[1737714120969,0.29509332,105090.0,105080.0,0.02988923]
[1737714121866,0.29509332,105090.0,105080.0,0.07768923]
[1737714122078,0.23681921,105090.0,105080.0,0.30888923]
[1737714122924,0.22781921,105090.0,105080.0,0.30888923]
[1737714123142,0.21881921,105090.0,105080.0,0.30888923]
[1737714123350,0.22081921,105090.0,105080.0,0.30888923]
[1737714123563,0.22581921,105090.0,105080.0,0.30888923]
[1737714123805,0.22581921,105090.0,105080.0,0.40405423]
[1737714125632,0.22581921,105090.0,105080.0,0.30888923]
[1737714126383,0.21581921,105090.0,105080.0,0.30888923]
[1737714126584,0.21581921,105090.0,105080.0,0.40405423]
[1737714127037,0.22581921,105090.0,105080.0,0.40405423]
[1737714127617,0.13066321,105090.0,105080.0,0.40405423]
[1737714127842,0.12066321,105090.0,105080.0,0.40405423]
[1737714128008,0.03331592,105090.0,105080.0,0.40405423]
[1737714128214,0.02223837,105090.0,105080.0,0.40405423]
[1737714129335,0.03223837,105090.0,105080.0,0.40405423]
[1737714129591,0.02223837,105090.0,105080.0,0.40405423]
[1737714130159,0.03223837,105090.0,105080.0,0.40405423]
[1737714130646,0.02223837,105090.0,105080.0,0.40405423]
[1737714132021,0.01269387,105090.0,105080.0,0.40405423]
[1737714133208,0.00769387,105090.0,105080.0,0.40405423]
[1737714134048,0.00569387,105090.0,105080.0,0.40405423]
[1737714134674,0.00669387,105090.0,105080.0,0.40405423]
[1737714134875,0.00869387,105090.0,105080.0,0.40405423]
[1737714136825,0.00869387,105090.0,105080.0,0.25405423]
[1737714148447,0.01869387,105090.0,105080.0,0.25405423]
[1737714149363,0.01782843,105090.0,105080.0,0.25405423]
[1737714149572,0.01782843,105090.0,105080.0,0.27274844]
[1737714150601,0.11298443,105090.0,105080.0,0.25405423]
[1737714150800,0.01782843,105090.0,105080.0,0.25405423]
[1737714152965,0.11298443,105090.0,105080.0,0.25405423]
[1737714153582,0.01782843,105090.0,105080.0,0.25405423]
[1737714157983,0.02744849,105090.0,105080.0,0.25405423]
[1737714158602,0.01782843,105090.0,105080.0,0.25405423]
[1737714165469,0.00782843,105090.0,105080.0,0.25405423]
[1737714181174,0.11298443,105090.0,105080.0,0.02988923]
[1737714181385,0.11298443,105090.0,105080.0,0.12505423]
[1737714182038,0.11298443,105090.0,105080.0,0.02988923]
[1737714182626,0.11298443,105090.0,105080.0,0.12505423]
[1737714184062,0.11298443,105090.0,105080.0,0.02988923]
[1737714184238,0.11298443,105090.0,105080.0,0.12505423]
[1737714186119,0.11298443,105090.0,105080.0,0.02988923]
[1737714186321,0.11298443,105090.0,105080.0,0.12505423]
[1737714189622,0.01782843,105090.0,105080.0,0.12505423]
[1737714190499,0.11298443,105090.0,105080.0,0.12505423]
[1737714193649,0.11298443,105090.0,105080.0,0.02988923]
[1737714194208,0.11298443,105090.0,105080.0,0.12505423]
[1737714196021,0.11298443,105090.0,105080.0,0.02988923]
[1737714196222,0.11298443,105090.0,105080.0,0.12505423]
[1737714196633,0.01782843,105090.0,105080.0,0.12505423]
[1737714196861,0.01782843,105090.0,105080.0,0.27505423]
[1737714197946,0.11298443,105090.0,105080.0,0.27505423]
[1737714202372,0.11298443,105090.0,105080.0,0.17988923]
[1737714205436,0.11298443,105090.0,105080.0,0.27505423]
[1737714206259,0.01782843,105090.0,105080.0,0.27505423]
[1737714208073,0.11298443,105090.0,105080.0,0.27505423]
[1737714209015,0.10845442,105090.0,105080.0,0.27505423]
[1737714209218,0.01329842,105090.0,105080.0,0.27505423]
[1737714210616,0.10845442,105090.0,105080.0,0.27505423]
[1737714211047,0.10845442,105090.0,105080.0,0.07538397]
[1737714211469,0.01329842,105090.0,105080.0,0.07538397]
[1737714212122,0.01329842,105090.0,105080.0,0.15108397]
[1737714213933,0.10845442,105090.0,105080.0,0.15108397]
[1737714214852,0.01329842,105090.0,105080.0,0.15108397]
[1737714215848,0.10845442,105090.0,105080.0,0.15108397]
[1737714216066,0.01329842,105090.0,105080.0,0.15122607]
[1737714226293,0.00329842,105090.0,105080.0,0.19942607]
[1737714228930,0.00329842,105090.0,105080.0,0.29677336]
[1737714230202,0.00029842,105090.0,105080.0,0.29677336]
[1737714233135,0.00029842,105090.0,105080.0,0.31542087]
[1737714239477,0.0948002,105110.0,105100.0,0.095147]
[1737714239677,0.77832863,105120.0,105100.0,0.095147]
[1737714239898,0.55220992,105120.0,105110.0,0.15]
[1737714241544,0.56120992,105120.0,105110.0,0.15]
[1737714241927,0.57020992,105120.0,105110.0,0.15]
[1737714244260,0.095138,105110.0,105100.0,0.24524067]
[1737714245513,0.100138,105110.0,105100.0,0.24524067]
[1737714246285,0.102138,105110.0,105100.0,0.24524067]
[1737714250682,0.102138,105110.0,105100.0,0.24538267]
[1737714255779,0.007,105110.0,105100.0,0.24538267]
[1737714260532,0.007,105110.0,105100.0,0.32248267]
[1737714260943,0.007,105110.0,105100.0,0.36848267]
[1737714261597,0.102138,105110.0,105100.0,0.15023567]
[1737714261776,0.10243621,105110.0,105100.0,0.24538267]
[1737714261980,0.09543621,105110.0,105100.0,0.24538267]
[1737714262183,0.09743621,105110.0,105100.0,0.24538267]
[1737714262344,0.09843621,105110.0,105100.0,0.24538267]
[1737714264783,0.2057835,105110.0,105100.0,0.15023567]
[1737714278178,0.27422716,105110.0,105100.0,0.15023567]
[1737714278398,0.34112716,105110.0,105100.0,0.00023567]
[1737714278602,0.38662716,105110.0,105100.0,0.00023567]
[1737714281634,0.45507082,105110.0,105100.0,0.00023567]
[1737714282058,0.38662716,105110.0,105100.0,0.00023567]
[1737714283759,0.45507082,105110.0,105100.0,0.00023567]
[1737714285361,0.45307082,105110.0,105100.0,0.00023567]
[1737714285565,0.45207082,105110.0,105100.0,0.00023567]
[1737714285763,0.46807082,105110.0,105100.0,6.7e-07]
[1737714286793,0.177256,105090.0,105080.0,0.0001421]
[1737714286991,0.34304695,105090.0,105080.0,0.00023576]
[1737714287427,0.41149061,105090.0,105080.0,0.00023576]
[1737714287715,0.39164695,105090.0,105080.0,0.00023576]
[1737714287832,0.46009061,105090.0,105080.0,0.00023576]
[1737714288202,0.46209061,105090.0,105080.0,0.00023576]
[1737714288837,0.46309061,105090.0,105080.0,0.00023576]
[1737714290272,0.39464695,105090.0,105080.0,0.00023576]
[1737714290438,0.26394695,105090.0,105080.0,0.00023576]
[1737714294158,0.27352316,105090.0,105080.0,0.00023576]
[1737714295370,0.40052316,105090.0,105080.0,0.00023576]
[1737714296088,0.30536716,105090.0,105080.0,0.00023576]
[1737714296289,0.40052316,105090.0,105080.0,0.00023576]
[1737714296776,0.46896682,105090.0,105080.0,0.00023576]
[1737714297121,0.48757095,105090.0,105080.0,0.00023576]
[1737714297333,0.41912729,105090.0,105080.0,0.00023576]
[1737714300786,0.48757095,105090.0,105080.0,0.00023576]
[1737714301403,0.41912729,105090.0,105080.0,0.00023576]
[1737714302810,0.48757095,105090.0,105080.0,0.00023576]
[1737714303656,0.48657095,105090.0,105080.0,0.00023576]
[1737714303872,0.49357095,105090.0,105080.0,0.00023576]
[1737714304496,0.48457095,105090.0,105080.0,0.00023576]
[1737714304708,0.49357095,105090.0,105080.0,0.00023576]
[1737714304861,0.50257095,105090.0,105080.0,0.00023576]
[1737714305072,0.49357095,105090.0,105080.0,0.00023576]
[1737714305280,0.43412729,105090.0,105080.0,0.00023576]
[1737714307840,0.38842729,105090.0,105080.0,0.00023576]
[1737714308427,0.28852316,105090.0,105080.0,0.00023576]
[1737714308633,0.28882158,105090.0,105080.0,0.00023576]
[1737714309243,0.28882158,105090.0,105080.0,0.04683576]
[1737714313197,0.28882158,105090.0,105080.0,0.12853576]
[1737714313728,0.29882158,105090.0,105080.0,0.12853576]
[1737714313925,0.23037792,105090.0,105080.0,0.12853576]
[1737714314534,0.22037792,105090.0,105080.0,0.12853576]
[1737714314936,0.29882158,105090.0,105080.0,0.12853576]
[1737714315180,0.28882158,105090.0,105080.0,0.12853576]
[1737714315324,0.29882158,105090.0,105080.0,0.12853576]
[1737714315524,0.29882158,105090.0,105080.0,0.12826834]
[1737714315928,0.23037792,105090.0,105080.0,0.12826834]
[1737714320190,0.29882158,105090.0,105080.0,0.12826834]
[1737714320404,0.29882158,105090.0,105080.0,0.12841044]
[1737714321628,0.23037792,105090.0,105080.0,0.12841044]
[1737714323684,0.02787463,105090.0,105080.0,0.22357544]
[1737714323892,0.01829842,105090.0,105080.0,0.22357544]
[1737714324706,0.00929842,105090.0,105080.0,0.22357544]
[1737714325125,0.01129842,105090.0,105080.0,0.22357544]
[1737714325336,0.00229842,105090.0,105080.0,0.22357544]
[1737714325768,0.00929842,105090.0,105080.0,0.22357544]
[1737714326197,0.00229842,105090.0,105080.0,0.22357544]
[1737714326551,0.00329842,105090.0,105080.0,0.22357544]
[1737714328654,0.00229842,105090.0,105080.0,0.22357544]
[1737714329868,0.00029842,105090.0,105080.0,0.32092273]
[1737714330272,0.00029842,105090.0,105080.0,0.32192273]
[1737714331474,0.00029842,105090.0,105080.0,0.32092273]
[1737714331842,0.00029842,105090.0,105080.0,0.32292273]
[1737714332279,0.00029842,105090.0,105080.0,0.32192273]
[1737714332683,0.00029842,105090.0,105080.0,0.32292273]
[1737714334543,0.00029842,105090.0,105080.0,0.33260409]
[1737714338834,0.00029842,105090.0,105080.0,0.33216464]
[1737714341532,0.00029842,105090.0,105080.0,0.35216464]
[1737714342644,0.00029842,105090.0,105080.0,0.35116464]
[1737714343285,0.00129842,105090.0,105080.0,0.35716464]
[1737714344349,0.00129842,105090.0,105080.0,0.33716464]
[1737714371256,0.00129842,105090.0,105080.0,0.54053751]
[1737714371436,4.2e-07,105090.0,105080.0,0.56053751]
[1737714372208,4.2e-07,105090.0,105080.0,0.66073751]
[1737714372377,0.00029821,105110.0,105100.0,0.219447]
[1737714372579,0.00029821,105110.0,105100.0,0.31679429]
[1737714373845,0.00029821,105110.0,105100.0,0.31979429]
[1737714374046,0.00029821,105110.0,105100.0,0.31935429]
[1737714375755,0.00029821,105110.0,105100.0,0.46935429]
[1737714380258,0.00029821,105110.0,105100.0,0.47865475]
[1737714381780,0.00029821,105110.0,105100.0,0.49763891]
[1737714383722,0.00029821,105110.0,105100.0,0.70101178]
[1737714383866,0.00029821,105110.0,105100.0,0.72101178]
[1737714384072,2.1e-07,105110.0,105100.0,0.82121178]
[1737714384285,2.1e-07,105110.0,105100.0,0.8220728]
[1737714384934,2.1e-07,105110.0,105100.0,0.7218728]
[1737714385165,2.1e-07,105110.0,105100.0,0.72101178]
[1737714385713,2.1e-07,105110.0,105100.0,0.72001178]
[1737714385918,2.1e-07,105110.0,105100.0,0.70201178]
[1737714386134,2.1e-07,105110.0,105100.0,0.71901178]
[1737714386588,2.1e-07,105110.0,105100.0,0.72301178]
[1737714386798,2.1e-07,105110.0,105100.0,0.71901178]
[1737714387222,2.1e-07,105110.0,105100.0,0.79023299]
[1737714388366,2.1e-07,105110.0,105100.0,0.81023299]
[1737714388566,2.1e-07,105110.0,105100.0,0.58686012]
[1737714389325,2.1e-07,105110.0,105100.0,0.58700222]
[1737714390631,2.1e-07,105110.0,105100.0,0.50078101]
[1737714395285,2.1e-07,105110.0,105100.0,0.42732101]
[1737714395494,2.1e-07,105110.0,105100.0,0.37892101]
[1737714395735,0.07770021,105110.0,105100.0,0.37892101]
[1737714395867,0.07770021,105110.0,105100.0,0.11258956]
[1737714396071,0.07770021,105110.0,105100.0,0.1032891]
[1737714396254,0.07770021,105110.0,105100.0,0.1012891]
[1737714396459,0.07770021,105110.0,105100.0,0.2472891]
[1737714396675,0.07770021,105110.0,105100.0,0.2532891]
[1737714400331,0.07770021,105110.0,105100.0,0.25296506]
[1737714401733,2.1e-07,105110.0,105100.0,0.35031235]
[1737714403308,0.07930021,105110.0,105100.0,0.25296506]
[1737714406148,0.07930021,105110.0,105100.0,0.10296506]
[1737714406358,0.07930021,105110.0,105100.0,0.25296506]
[1737714406568,0.18443821,105110.0,105100.0,0.25296506]
[1737714406727,0.08930021,105110.0,105100.0,0.25296506]
[1737714407726,0.08930021,105110.0,105100.0,0.25096506]
[1737714408133,0.08930021,105110.0,105100.0,0.25296506]
[1737714408352,0.08930021,105110.0,105100.0,0.24696506]
[1737714408583,0.08930021,105110.0,105100.0,0.24496506]
[1737714408778,0.09030021,105110.0,105100.0,0.25096506]
[1737714408990,0.09030021,105110.0,105100.0,0.24496506]
[1737714409361,0.09130021,105110.0,105100.0,0.24496506]
[1737714410365,0.09130021,105110.0,105100.0,0.09496506]
[1737714413530,0.10068611,105110.0,105100.0,0.09496506]
[1737714430374,0.00200021,105110.0,105100.0,0.09496506]
[1737714430581,0.00200021,105110.0,105100.0,0.17396506]
[1737714431385,0.00100021,105110.0,105100.0,0.17396506]
[1737714431701,2.1e-07,105110.0,105100.0,0.17596506]
[1737714431914,2.1e-07,105110.0,105100.0,0.17396506]
[1737714432085,2.1e-07,105110.0,105100.0,0.17596506]
[1737714433132,2.1e-07,105110.0,105100.0,0.17696506]
[1737714433553,2.1e-07,105110.0,105100.0,0.17596506]
[1737714433989,2.1e-07,105110.0,105100.0,0.17696506]
[1737714434684,2.1e-07,105110.0,105100.0,0.27431235]
[1737714435130,2.1e-07,105110.0,105100.0,0.32391235]
[1737714437167,2.1e-07,105110.0,105100.0,0.33345288]
[1737714441647,2.1e-07,105110.0,105100.0,0.53682575]
[1737714442448,2.1e-07,105110.0,105100.0,0.55540849]
[1737714443079,2.1e-07,105110.0,105100.0,0.55440849]
[1737714443329,2.1e-07,105110.0,105100.0,0.57640849]
[1737714443959,2.1e-07,105110.0,105100.0,0.57240849]
[1737714444168,2.1e-07,105110.0,105100.0,0.57440849]
[1737714444376,2.1e-07,105110.0,105100.0,0.57940849]
[1737714444979,2.1e-07,105110.0,105100.0,0.57440849]
[1737714445391,2.1e-07,105110.0,105100.0,0.58040849]
[1737714445594,2.1e-07,105110.0,105100.0,0.57840849]
[1737714445772,2.1e-07,105110.0,105100.0,0.58040849]
[1737714445976,2.1e-07,105110.0,105100.0,0.6656297]
[1737714447271,2.1e-07,105110.0,105100.0,1.5287297]
[1737714449416,2.1e-07,105110.0,105100.0,1.44350849]
[1737714452194,2.1e-07,105110.0,105100.0,1.43871095]
[1737714452394,2.1e-07,105110.0,105100.0,1.44963095]
[1737714453864,2.1e-07,105110.0,105100.0,1.45260955]
[1737714461101,2.1e-07,105110.0,105100.0,1.53783076]
[1737714462053,6.3e-07,105120.0,105110.0,0.244538]
[1737714462293,0.00029842,105140.0,105130.0,0.09512]
[1737714462501,0.00029842,105140.0,105130.0,0.19246729]
[1737714463599,0.0007912,105140.0,105130.0,0.19246729]
[1737714463994,0.0007912,105140.0,105130.0,0.19746729]
[1737714465346,0.0007912,105140.0,105130.0,0.19846729]
[1737714466839,0.0007912,105140.0,105130.0,0.21740423]
[1737714468361,0.0007912,105140.0,105130.0,0.2271136]
[1737714470403,0.0007912,105140.0,105130.0,0.3771136]
[1737714475208,0.0007912,105140.0,105130.0,0.2271136]
[1737714479234,0.0007912,105140.0,105130.0,0.2267503]
[1737714481036,0.0833912,105140.0,105130.0,0.20781336]
[1737714481242,0.0833912,105140.0,105130.0,0.11046607]
[1737714485923,0.0007912,105140.0,105130.0,0.20781336]
[1737714493242,0.0007912,105140.0,105130.0,0.20795536]
[1737714495801,0.0782912,105140.0,105130.0,0.1008987]
[1737714496234,0.0882912,105140.0,105130.0,0.1008987]
[1737714496562,0.1349912,105140.0,105130.0,0.1008987]
[1737714501782,0.14438157,105140.0,105130.0,0.1008987]
[1737714503421,0.14438157,105140.0,105130.0,0.101262]
[1737714504450,0.14438157,105140.0,105130.0,0.095262]
[1737714504912,0.14438157,105140.0,105130.0,0.001142]
[1737714505142,0.30785807,105140.0,105130.0,0.001142]
[1737714505361,0.33085807,105140.0,105130.0,0.001142]
[1737714505751,0.48657086,105140.0,105130.0,0.001142]
[1737714507233,0.48757086,105140.0,105130.0,0.000142]
[1737714507654,0.48857086,105140.0,105130.0,0.000142]
[1737714512753,0.50794673,105140.0,105130.0,0.000142]
[1737714514222,0.48857086,105140.0,105130.0,0.000142]
[1737714514928,0.48657086,105140.0,105130.0,0.000142]
[1737714515313,0.49357086,105140.0,105130.0,0.000142]
[1737714518339,0.42520536,105140.0,105130.0,0.000142]
[1737714518934,0.40220536,105140.0,105130.0,0.000142]
[1737714519134,0.49357086,105140.0,105130.0,0.000142]
[1737714521958,0.42520536,105140.0,105130.0,0.000142]
[1737714524574,0.49357086,105140.0,105130.0,0.000142]
[1737714531213,0.42520536,105140.0,105130.0,0.000142]
[1737714531598,0.37850536,105140.0,105130.0,0.000142]
[1737714535601,0.37850536,105140.0,105130.0,0.150142]
[1737714535990,0.30100536,105140.0,105130.0,0.150142]
[1737714543784,0.0177912,105140.0,105130.0,0.322662]
[1737714543984,0.0177912,105140.0,105130.0,0.368062]
[1737714545097,0.0107912,105140.0,105130.0,0.368062]
[1737714545449,0.0127912,105140.0,105130.0,0.368062]
[1737714548956,0.0097343,105150.0,105140.0,0.221411]
[1737714549155,0.08491218,105180.0,105170.0,0.245084]
[1737714549363,0.08491218,105180.0,105170.0,0.34243129]
[1737714549570,0.08506001,105180.0,105170.0,0.34243129]
[1737714549998,0.08506001,105180.0,105170.0,0.38783129]
[1737714550211,0.08506001,105180.0,105170.0,0.46873129]
[1737714551623,0.08506001,105180.0,105170.0,0.47073129]
[1737714552387,0.08506001,105180.0,105170.0,0.48975209]
[1737714552860,0.00044625,105180.0,105170.0,0.48975209]
[1737714555370,0.00044625,105180.0,105170.0,0.49942839]
[1737714562830,0.00044625,105180.0,105170.0,0.49957039]
[1737714565583,2.1e-07,105220.0,105210.0,0.235147]
[1737714565792,0.00029842,105230.0,105220.0,0.275038]
[1737714565994,0.00029842,105230.0,105220.0,0.37238529]
[1737714566533,4.2e-07,105230.0,105220.0,1.15376914]
[1737714567290,4.2e-07,105230.0,105220.0,1.15876914]
[1737714567519,4.2e-07,105230.0,105220.0,1.13193816]
[1737714568101,4.2e-07,105230.0,105220.0,1.13393816]
[1737714569397,4.2e-07,105230.0,105220.0,1.15317554]
[1737714571225,8.4e-07,105240.0,105230.0,0.385629]
[1737714571412,8.4e-07,105240.0,105230.0,0.48297629]
[1737714571834,0.00429126,105240.0,105230.0,0.48297629]
[1737714572033,0.00429126,105240.0,105230.0,1.02307629]
[1737714572380,0.00429126,105240.0,105230.0,1.04307629]
[1737714573029,0.00429126,105240.0,105230.0,1.04807629]
[1737714573457,0.00429126,105240.0,105230.0,1.02807629]
[1737714574074,0.00429126,105240.0,105230.0,0.89807629]
[1737714574606,0.00429126,105240.0,105230.0,0.89907629]
[1737714576294,2.6e-07,105240.0,105230.0,0.90862603]
[1737714576492,0.00029842,105250.0,105240.0,0.12502]
[1737714576751,0.00029842,105250.0,105240.0,0.96584016]
[1737714576956,0.00029842,105250.0,105240.0,0.97704016]
[1737714578116,0.00029842,105250.0,105240.0,0.97904016]
[1737714578554,0.00029842,105250.0,105240.0,0.95904016]
[1737714578757,0.00029842,105250.0,105240.0,0.98304016]
[1737714580212,0.00029842,105250.0,105240.0,0.73846729]
[1737714580775,0.00029842,105250.0,105240.0,0.19836729]
[1737714581181,0.00029842,105250.0,105240.0,0.19636729]
[1737714581382,0.00029842,105250.0,105240.0,0.19336729]
[1737714581791,0.00029842,105250.0,105240.0,0.19636729]
[1737714582500,0.00029842,105250.0,105240.0,0.40974016]
[1737714584160,0.00029842,105250.0,105240.0,0.93984016]
[1737714584380,0.00029842,105250.0,105240.0,0.73646729]
[1737714585319,0.00029842,105250.0,105240.0,0.74646729]
[1737714585545,0.00029842,105250.0,105240.0,0.76525975]
[1737714585780,0.00029821,105260.0,105250.0,0.02454319]
[1737714586002,0.00079051,105260.0,105250.0,0.21690148]
[1737714588328,0.00079051,105260.0,105250.0,0.21790148]
[1737714589040,0.00079051,105260.0,105250.0,0.22090148]
[1737714589288,0.00079051,105260.0,105250.0,0.21790148]
[1737714589496,0.00079051,105260.0,105250.0,0.21690148]
[1737714596970,0.00079051,105260.0,105250.0,0.11955419]